bitfinex/quotes_SOLUSD_20250731
["timestamp","ask_amount","ask_price","bid_price","bid_amount"]
[1754005707935,42.42,172.41,172.38,8.89820321]
[1754005708098,42.42,172.41,172.4,8.89820321]
[1754005708502,190.02,172.42,172.4,8.89820321]
[1754005708706,190.02,172.42,172.41,8.89820321]
[1754005709005,0.66,172.42,172.39,8.89820321]
[1754005709205,0.66,172.41,172.39,8.89820321]
[1754005709408,0.66,172.45,172.4,9.59820321]
[1754005709609,42.42,172.44,172.43,8.89820321]
[1754005710014,42.42,172.44,172.42,8.89820321]
[1754005711104,43.08,172.44,172.42,8.89820321]
[1754005711510,42.42,172.44,172.42,8.89820321]
[1754005712140,42.42,172.44,172.43,8.89820321]
[1754005712301,147.6,172.46,172.43,8.89820321]
[1754005712508,42.4,172.45,172.41,0.7]
[1754005712720,43.06,172.45,172.41,0.7]
[1754005713302,0.66,172.44,172.38,0.7]
[1754005713712,147.6,172.46,172.43,8.89820321]
[1754005713918,42.4,172.45,172.44,8.89820321]
[1754005715909,190.0,172.46,172.44,8.89820321]
[1754005716117,190.0,172.46,172.41,0.7]
[1754005716118,190.0,172.46,172.45,8.89820321]
[1754005717934,190.0,172.46,172.41,0.7]
[1754005718231,190.0,172.46,172.42,0.72]
[1754005718726,190.0,172.46,172.43,0.72]
[1754005719025,4.77155383,172.55,172.45,8.89820321]
[1754005719227,4.77155383,172.55,172.51,8.89820321]
[1754005719228,3.84060417,172.55,172.51,8.89820321]
[1754005719431,43.08,172.54,172.53,8.89820321]
[1754005719932,43.08,172.54,172.49,0.72]
[1754005720132,42.38,172.54,172.53,8.89820321]
[1754005720433,0.7,172.6,172.53,9.61820321]
[1754005720616,3.84212871,172.61,172.59,8.89820321]
[1754005720812,0.7,172.62,172.51,17.36436051]
[1754005720813,3.84217252,172.62,172.6,8.89820321]
[1754005721020,43.08,172.61,172.59,8.89820321]
[1754005721618,0.7,172.61,172.59,8.89820321]
[1754005721816,0.7,172.6,172.58,8.89820321]
[1754005722025,43.08,172.59,172.58,8.89820321]
[1754005722418,43.08,172.59,172.51,17.50468397]
[1754005722621,43.08,172.59,172.55,8.89820321]
[1754005722827,0.7,172.58,172.55,8.89820321]
[1754005723016,42.36,172.57,172.56,8.89820321]
[1754005723227,42.36,172.57,172.52,0.72]
[1754005723418,42.36,172.57,172.56,8.89820321]
[1754005723618,42.36,172.57,172.56,9.61820321]
[1754005724017,42.36,172.59,172.56,9.61820321]
[1754005724331,42.36,172.59,172.58,8.89820321]
[1754005725520,42.36,172.6,172.58,8.89820321]
[1754005725736,42.36,172.6,172.59,8.89820321]
[1754005726213,0.7,172.66,172.59,9.61820321]
[1754005726419,42.36,172.65,172.63,8.89820321]
[1754005726618,0.7,172.64,172.63,8.89820321]
[1754005726826,0.7,172.64,172.62,8.89820321]
[1754005727029,43.04,172.63,172.62,8.89820321]
[1754005727440,42.34,172.63,172.62,8.89820321]
[1754005730719,42.32,172.64,172.62,9.61820321]
[1754005731023,42.32,172.64,172.63,8.89820321]
[1754005731418,42.32,172.64,172.63,9.61820321]
[1754005731639,148.3,172.68,172.63,9.61820321]
[1754005731824,42.32,172.67,172.66,8.89820321]
[1754005732231,0.7,172.71,172.66,8.89820321]
[1754005732442,0.7,172.71,172.64,0.72]
[1754005732443,42.32,172.69,172.68,8.89820321]
[1754005732620,42.32,172.69,172.68,9.61820321]
[1754005733125,42.32,172.69,172.68,8.89820321]
[1754005734024,148.3,172.73,172.68,8.89820321]
[1754005734248,43.02,172.72,172.7,8.89820321]
[1754005734420,0.7,172.71,172.7,8.89820321]
[1754005734941,0.7,172.71,172.69,8.89820321]
[1754005735935,0.7,172.71,172.65,0.72]
[1754005735936,0.7,172.7,172.68,8.89820321]
[1754005736136,0.7,172.7,172.63,48.57734332]
[1754005736137,0.7,172.7,172.64,17.50468397]
[1754005736345,0.7,172.7,172.68,8.89820321]
[1754005737628,43.0,172.69,172.62,0.72]
[1754005737944,0.7,172.72,172.68,8.89820321]
[1754005738143,26.0,172.74,172.69,8.89820321]
[1754005738144,43.0,172.71,172.69,8.89820321]
[1754005738348,42.3,172.7,172.69,8.89820321]
[1754005738540,0.7,172.71,172.69,8.89820321]
[1754005738850,42.3,172.7,172.69,8.89820321]
[1754005739225,0.7,172.71,172.69,8.89820321]
[1754005739425,42.28,172.7,172.69,8.89820321]
[1754005740349,42.98,172.7,172.63,17.50468397]
[1754005740528,42.98,172.7,172.66,8.89820321]
[1754005740724,0.7,172.69,172.66,8.89820321]
[1754005740926,0.7,172.69,172.68,8.89820321]
[1754005741140,42.28,172.69,172.68,8.89820321]
[1754005741839,162.06987212,172.78,172.68,8.89820321]
[1754005742149,0.7,172.74,172.71,8.89820321]
[1754005742345,14.68667882,172.76,172.73,8.89820321]
[1754005742346,0.7,172.76,172.73,8.89820321]
[1754005742523,42.28,172.75,172.74,8.89820321]
[1754005742852,42.28,172.75,172.7,0.72]
[1754005743151,42.28,172.75,172.73,8.89820321]
[1754005743951,0.7,172.77,172.74,8.89820321]
[1754005744155,216.56,172.76,172.73,8.89820321]
[1754005744452,42.26,172.75,172.73,8.89820321]
[1754005744753,0.7,172.74,172.72,8.89820321]
[1754005745163,0.7,172.74,172.69,0.68]
[1754005745325,0.7,172.73,172.67,17.46468397]
[1754005745530,42.26,172.72,172.71,8.89820321]
[1754005747352,5.79005268,172.71,172.69,8.89820321]
[1754005747560,0.7,172.71,172.69,8.89820321]
[1754005748049,0.7,172.7,172.63,0.68]
[1754005748257,0.7,172.7,172.65,8.89820321]
[1754005748258,68.26,172.69,172.65,8.89820321]
[1754005748554,0.7,172.68,172.63,0.68]
[1754005748759,0.7,172.68,172.65,8.89820321]
[1754005748949,9.59820321,172.67,172.62,8.89820321]
[1754005749137,51.85820321,172.66,172.61,8.89820321]
[1754005749338,51.85820321,172.66,172.59,0.68]
[1754005749339,8.89820321,172.64,172.59,8.89820321]
[1754005749540,0.7,172.63,172.6,8.89820321]
[1754005749742,42.24,172.62,172.6,8.89820321]
[1754005750154,42.94,172.62,172.59,8.89820321]
[1754005751460,5.79239148,172.65,172.61,8.89820321]
[1754005751461,0.7,172.65,172.61,8.89820321]
[1754005751656,42.24,172.64,172.61,8.89820321]
[1754005752048,42.94,172.64,172.61,8.89820321]
[1754005752656,14.47907673,172.67,172.54,31.79570656]
[1754005752657,42.24,172.63,172.62,0.68]
[1754005752850,42.24,172.63,172.56,26.57950857]
[1754005753054,0.7,172.65,172.62,8.89820321]
[1754005753265,42.94,172.64,172.62,8.89820321]
[1754005753469,42.94,172.64,172.61,8.89820321]
[1754005754371,42.94,172.64,172.62,8.89820321]
[1754005754575,42.24,172.64,172.62,8.89820321]
[1754005757548,42.94,172.64,172.62,8.89820321]
[1754005758671,48.73240489,172.64,172.61,8.89820321]
[1754005759055,42.94,172.64,172.61,8.89820321]
[1754005759462,48.73242368,172.64,172.61,8.89820321]
[1754005759658,42.94,172.64,172.61,8.89820321]
[1754005760159,48.73244644,172.64,172.61,8.89820321]
[1754005760669,0.7,172.63,172.6,8.89820321]
[1754005760874,0.7,172.63,172.61,5.99061603]
[1754005760875,42.24,172.62,172.61,5.99061603]
[1754005761669,148.3,172.65,172.61,5.99061603]
[1754005761864,26.0,172.67,172.64,5.99061603]
[1754005762173,42.24,172.66,172.65,5.99061603]
[1754005762377,42.94,172.66,172.63,5.99061603]
[1754005763200,26.0,172.67,172.65,5.99061603]
[1754005763368,26.0,172.67,172.66,5.99061603]
[1754005763554,3.82938075,172.67,172.66,6.67061603]
[1754005763880,42.22,172.67,172.66,6.67061603]
[1754005764376,42.22,172.67,172.66,5.99061603]
[1754005764568,42.92,172.67,172.64,5.99061603]
[1754005764768,0.7,172.66,172.63,5.99061603]
[1754005765074,42.22,172.65,172.63,5.99061603]
[1754005765767,42.92,172.65,172.62,5.99061603]
[1754005765960,0.7,172.64,172.6,5.99061603]
[1754005766167,42.92,172.63,172.6,5.99061603]
[1754005766774,42.92,172.63,172.6,8.87511248]
[1754005766967,15.36695929,172.66,172.61,8.87511248]
[1754005767282,46.05899425,172.65,172.61,9.55511248]
[1754005767583,3.83899425,172.64,172.56,22.57953043]
[1754005767757,42.22,172.64,172.63,8.87511248]
[1754005767961,46.06066884,172.64,172.62,8.87511248]
[1754005768155,0.7,172.66,172.63,8.87511248]
[1754005768351,42.22,172.65,172.63,8.87511248]
[1754005769203,26.0,172.67,172.63,8.87511248]
[1754005769412,3.84306677,172.66,172.63,8.87511248]
[1754005769611,46.06306677,172.66,172.63,8.87511248]
[1754005769911,42.22,172.65,172.63,8.87511248]
[1754005770278,42.22,172.65,172.62,0.68]
[1754005770279,42.22,172.65,172.64,8.87511248]
[1754005770506,26.0,172.67,172.64,8.87511248]
[1754005770709,42.22,172.65,172.64,8.87511248]
[1754005770922,42.2,172.65,172.57,5.79459357]
[1754005771090,42.2,172.65,172.63,8.87511248]
[1754005771484,42.2,172.64,172.63,8.87511248]
[1754005771903,51.77511248,172.64,172.59,8.87511248]
[1754005772106,0.7,172.63,172.59,8.87511248]
[1754005772310,42.9,172.62,172.57,0.68]
[1754005772492,42.9,172.62,172.59,8.87511248]
[1754005772690,0.7,172.67,172.61,8.87511248]
[1754005772907,3.84504768,172.67,172.65,8.87511248]
[1754005773115,3.84504768,172.67,172.66,8.87511248]
[1754005773418,46.04504768,172.67,172.65,8.87511248]
[1754005773627,46.04504768,172.67,172.57,49.15885132]
[1754005773628,3.84504768,172.66,172.64,8.87511248]
[1754005773812,42.2,172.65,172.64,8.87511248]
[1754005774492,42.2,172.65,172.61,0.68]
[1754005774714,42.2,172.65,172.62,8.87511248]
[1754005774715,42.89,172.65,172.62,8.87511248]
[1754005775211,0.69,172.65,172.63,8.87511248]
[1754005775429,42.2,172.64,172.62,8.87511248]
[1754005775926,42.2,172.63,172.62,8.87511248]
[1754005776094,42.2,172.63,172.62,9.56511248]
[1754005776581,42.2,172.63,172.62,8.87511248]
[1754005776782,0.69,172.67,172.62,8.87511248]
[1754005777007,42.89,172.66,172.64,8.87511248]
[1754005777205,42.89,172.66,172.61,0.69]
[1754005777412,42.89,172.66,172.63,8.87511248]
[1754005777908,55.61011935,172.65,172.6,8.87511248]
[1754005778218,147.6,172.67,172.64,8.87511248]
[1754005778521,42.18,172.66,172.65,8.87511248]
[1754005778710,42.87,172.66,172.64,8.87511248]
[1754005779522,13.41009784,172.65,172.54,0.69]
[1754005779697,8.87511248,172.61,172.56,8.87511248]
[1754005779899,42.18,172.6,172.56,8.87511248]
[1754005780217,42.87,172.6,172.57,8.87511248]
[1754005780387,42.87,172.6,172.58,8.87511248]
[1754005780388,42.18,172.6,172.58,8.87511248]
[1754005780916,148.29,172.64,172.59,8.87511248]
[1754005781216,0.69,172.63,172.6,8.87511248]
[1754005781519,42.18,172.62,172.6,8.87511248]
[1754005782310,147.6,172.64,172.61,9.56511248]
[1754005782517,147.6,172.64,172.63,8.87511248]
[1754005783327,189.78,172.64,172.63,8.87511248]
[1754005783514,147.6,172.64,172.63,8.87511248]
[1754005783897,189.78,172.64,172.63,8.87511248]
[1754005785410,147.6,172.64,172.63,8.87511248]
[1754005785618,189.78,172.64,172.63,8.87511248]
[1754005786613,189.78,172.64,172.61,0.69]
[1754005786817,189.78,172.64,172.57,5.79473744]
[1754005786818,189.78,172.64,172.63,8.87511248]
[1754005787427,147.6,172.64,172.63,9.56511248]
[1754005787724,42.16,172.64,172.63,9.56511248]
[1754005788396,26.0,172.69,172.63,9.56511248]
[1754005788595,3.84790599,172.68,172.64,0.69]
[1754005788894,42.16,172.67,172.65,0.69]
[1754005789698,42.16,172.67,172.66,0.69]
[1754005789895,148.29,172.7,172.66,6.67526806]
[1754005790098,46.01168726,172.69,172.66,5.98526806]
[1754005790302,42.85,172.69,172.67,5.98526806]
[1754005791519,42.16,172.69,172.68,5.98526806]
[1754005791710,46.01458691,172.69,172.68,5.98526806]
[1754005791913,46.70458691,172.69,172.67,5.98526806]
[1754005792105,4.54443431,172.68,172.67,5.98526806]
[1754005792309,4.54443431,172.68,172.63,0.69]
[1754005792619,147.6,172.7,172.67,5.98526806]
[1754005792793,147.6,172.7,172.69,5.98526806]
[1754005792996,193.5954296,172.7,172.69,5.98526806]
[1754005793225,194.2854296,172.7,172.68,5.98526806]
[1754005793422,3.8554296,172.69,172.68,5.98526806]
[1754005794124,189.74,172.7,172.68,5.98526806]
[1754005794325,189.74,172.7,172.69,5.98526806]
[1754005794503,193.59439598,172.7,172.69,5.98526806]
[1754005795332,193.59480501,172.7,172.69,5.98526806]
[1754005795540,189.74,172.7,172.69,5.98526806]
[1754005795708,147.6,172.7,172.69,5.98526806]
[1754005795904,193.59457628,172.7,172.69,5.98526806]
[1754005796922,193.57457628,172.7,172.69,5.98526806]
[1754005797841,194.26457628,172.7,172.68,5.98526806]
[1754005798126,190.41,172.7,172.68,5.98526806]
[1754005798303,190.41,172.7,172.65,0.69]
[1754005798304,189.72,172.7,172.69,5.98526806]
[1754005798503,147.6,172.7,172.69,5.98526806]
[1754005798723,189.72,172.7,172.69,5.98526806]
[1754005798900,147.6,172.7,172.69,5.98526806]
[1754005799107,189.72,172.7,172.69,5.98526806]
[1754005799629,147.6,172.74,172.69,6.67526806]
[1754005799806,147.6,172.74,172.65,42.78468397]
[1754005799807,3.85358577,172.73,172.68,16.78468397]
[1754005800006,147.6,172.74,172.72,5.98526806]
[1754005800199,147.6,172.74,172.73,5.98526806]
[1754005800410,189.72,172.74,172.73,5.98526806]
[1754005801011,193.57176463,172.74,172.73,5.98526806]
[1754005801331,193.57176463,172.74,172.72,5.98526806]
[1754005801509,189.72,172.74,172.71,0.69]
[1754005801713,189.72,172.74,172.72,5.98526806]
[1754005802011,0.69,172.73,172.66,0.69]
[1754005802214,195.68526806,172.72,172.64,0.69]
[1754005802417,189.7,172.72,172.7,5.98526806]
[1754005802618,4.53924721,172.71,172.68,5.98526806]
[1754005802872,42.79,172.7,172.68,5.98526806]
[1754005803136,42.1,172.69,172.67,0.69]
[1754005803328,42.1,172.69,172.63,26.0]
[1754005803329,42.1,172.69,172.68,5.98526806]
[1754005803524,42.79,172.69,172.68,5.98526806]
[1754005804339,42.1,172.69,172.68,5.98526806]
[1754005805416,42.78,172.69,172.68,5.98526806]
[1754005806013,42.1,172.69,172.68,5.98526806]
[1754005806947,0.68,172.71,172.68,5.98526806]
[1754005807117,3.85124455,172.71,172.69,5.98526806]
[1754005807323,42.1,172.7,172.69,5.98526806]
[1754005808226,42.78,172.7,172.65,0.69]
[1754005808425,0.68,172.69,172.67,5.98526806]
[1754005808624,42.08,172.68,172.67,5.98526806]
[1754005810949,42.08,172.68,172.64,0.66]
[1754005811251,42.08,172.68,172.67,5.98526806]
[1754005811460,148.28,172.72,172.67,6.64526806]
[1754005811628,42.08,172.71,172.7,5.98526806]
[1754005812644,42.76,172.71,172.7,5.98526806]
[1754005812863,0.68,172.71,172.7,5.98526806]
[1754005813048,42.76,172.71,172.7,5.98526806]
[1754005813256,42.76,172.71,172.64,0.66]
[1754005813452,0.68,172.7,172.67,5.98526806]
[1754005813751,42.76,172.69,172.66,5.98526806]
[1754005814049,42.76,172.69,172.67,5.98526806]
[1754005815148,42.76,172.69,172.68,5.98526806]
[1754005816247,42.08,172.69,172.68,5.98526806]
[1754005816945,42.76,172.69,172.65,0.66]
[1754005817259,154.07015804,172.71,172.68,5.98526806]
[1754005817459,42.06,172.7,172.68,5.98526806]
[1754005817757,42.06,172.69,172.68,5.98526806]
[1754005817942,0.68,172.7,172.68,5.98526806]
[1754005818126,42.06,172.69,172.66,0.66]
[1754005818326,42.06,172.69,172.68,5.98526806]
[1754005818741,0.68,172.7,172.68,5.98526806]
[1754005818941,42.06,172.69,172.68,5.98526806]
[1754005819149,0.68,172.7,172.68,5.98526806]
[1754005819452,42.06,172.69,172.68,5.98526806]
[1754005819629,42.06,172.69,172.68,6.64526806]
[1754005820140,42.06,172.69,172.68,5.98526806]
[1754005821363,42.04,172.69,172.68,5.98526806]
[1754005821647,147.6,172.71,172.68,6.64526806]
[1754005821934,147.6,172.71,172.7,5.98526806]
[1754005822146,189.64,172.71,172.7,5.98526806]
[1754005822340,0.68,172.74,172.7,6.64526806]
[1754005822557,0.68,172.74,172.71,0.66]
[1754005822558,42.04,172.73,172.71,0.66]
[1754005822755,42.04,172.73,172.72,5.98526806]
[1754005823433,148.28,172.75,172.72,5.98526806]
[1754005823630,45.8914289,172.74,172.72,5.98526806]
[1754005823852,42.04,172.73,172.68,0.66]
[1754005824153,42.72,172.73,172.66,0.66]
[1754005824332,4.53090691,172.72,172.68,5.98526806]
[1754005824540,48.70526806,172.71,172.66,5.98526806]
[1754005824863,0.68,172.7,172.66,5.98526806]
[1754005825032,42.72,172.69,172.66,5.98526806]
[1754005825232,5.98526806,172.67,172.62,5.98526806]
[1754005825433,42.72,172.66,172.63,5.98526806]
[1754005825668,42.04,172.65,172.63,0.66]
[1754005825958,42.02,172.66,172.64,5.98526806]
[1754005826359,42.7,172.66,172.64,5.98526806]
[1754005827361,42.02,172.66,172.64,5.98526806]
[1754005827664,0.68,172.65,172.63,5.98526806]
[1754005828363,42.02,172.66,172.64,5.98526806]
[1754005828572,42.02,172.66,172.62,0.66]
[1754005828750,42.02,172.66,172.65,5.98526806]
[1754005829254,42.02,172.66,172.64,5.98526806]
[1754005829460,0.68,172.65,172.63,5.98526806]
[1754005829764,0.68,172.65,172.6,5.98526806]
[1754005829765,0.68,172.64,172.6,5.98526806]
[1754005830060,9.83736301,172.65,172.6,5.98526806]
[1754005830061,42.02,172.63,172.6,5.98526806]
[1754005830249,42.7,172.63,172.61,5.98526806]
[1754005830635,42.02,172.63,172.62,5.98526806]
[1754005831238,42.02,172.63,172.61,5.98526806]
[1754005831566,42.7,172.63,172.61,5.98526806]
[1754005831973,0.68,172.63,172.61,5.98526806]
[1754005832153,42.02,172.62,172.59,0.66]
[1754005832355,42.02,172.62,172.61,5.98526806]
[1754005832669,42.7,172.62,172.61,5.98526806]
[1754005833275,48.68526806,172.62,172.57,5.98526806]
[1754005833573,0.68,172.61,172.57,5.98526806]
[1754005834248,6.66526806,172.61,172.56,5.98526806]
[1754005834443,47.81310611,172.62,172.51,22.58134415]
[1754005834444,5.98526806,172.59,172.51,0.68]
[1754005834649,5.98526806,172.59,172.51,5.98526806]
[1754005834650,5.98526806,172.56,172.51,5.98526806]
[1754005834879,5.98526806,172.54,172.49,5.98526806]
[1754005835067,42.7,172.53,172.49,5.98526806]
[1754005835260,42.7,172.53,172.5,5.98526806]
[1754005836874,42.7,172.53,172.51,5.98526806]
[1754005837569,0.68,172.52,172.49,5.98526806]
[1754005837744,6.66526806,172.52,172.47,5.98526806]
[1754005837945,0.68,172.51,172.45,26.0]
[1754005838162,42.02,172.5,172.47,5.98526806]
[1754005838367,42.7,172.5,172.47,5.98526806]
[1754005838563,42.7,172.5,172.44,26.68]
[1754005838764,0.68,172.49,172.46,5.98526806]
[1754005840268,42.02,172.5,172.47,5.98526806]
[1754005840573,42.7,172.5,172.47,5.98526806]
[1754005844251,0.68,172.49,172.41,42.78468397]
[1754005844456,0.68,172.49,172.45,5.98526806]
[1754005844675,0.68,172.48,172.46,5.98526806]
[1754005844880,42.02,172.47,172.41,48.58470554]
[1754005845053,42.0,172.47,172.46,5.98526806]
[1754005850051,0.68,172.5,172.46,5.98526806]
[1754005850253,147.6,172.51,172.41,42.78468397]
[1754005850254,42.0,172.49,172.41,42.78468397]
[1754005850475,0.68,172.48,172.46,5.98526806]
[1754005851386,0.68,172.47,172.45,5.98526806]
[1754005851590,42.68,172.46,172.45,5.98526806]
[1754005851881,42.0,172.46,172.45,5.98526806]
[1754005852291,42.68,172.46,172.45,5.98526806]
[1754005852491,42.0,172.46,172.45,5.98526806]
[1754005852654,148.28,172.48,172.45,5.98526806]
[1754005852859,42.0,172.47,172.45,5.98526806]
[1754005853083,42.0,172.46,172.43,0.68]
[1754005853286,42.0,172.46,172.45,5.98526806]
[1754005854757,42.0,172.47,172.45,5.98526806]
[1754005854958,42.0,172.47,172.46,5.98526806]
[1754005855157,147.6,172.48,172.46,5.98526806]
[1754005855390,42.0,172.47,172.46,5.98526806]
[1754005856561,147.6,172.48,172.46,5.98526806]
[1754005856881,147.6,172.48,172.47,5.98526806]
[1754005857087,147.6,172.48,172.47,6.66526806]
[1754005857266,41.98,172.51,172.47,6.66526806]
[1754005857466,41.98,172.51,172.5,5.98526806]
[1754005857974,42.66,172.51,172.49,5.98526806]
[1754005858178,41.98,172.51,172.5,5.98526806]
[1754005858571,41.98,172.51,172.48,5.98526806]
[1754005858784,0.68,172.5,172.48,5.98526806]
[1754005858973,0.68,172.5,172.49,5.98526806]
[1754005859163,41.98,172.51,172.49,5.98526806]
[1754005859362,147.6,172.55,172.5,5.98526806]
[1754005859589,42.66,172.54,172.52,5.98526806]
[1754005860093,42.66,172.54,172.53,5.98526806]
[1754005860470,147.6,172.55,172.53,5.98526806]
[1754005860675,14.48237762,172.63,172.53,5.98526806]
[1754005860676,0.68,172.62,172.54,5.98526806]
[1754005860987,41.98,172.61,172.55,0.68]
[1754005861192,42.66,172.61,172.6,5.98526806]
[1754005861389,41.98,172.61,172.6,5.98526806]
[1754005861699,42.66,172.61,172.59,5.98526806]
[1754005861866,0.68,172.6,172.59,5.98526806]
[1754005862679,4.61690547,172.62,172.59,5.98526806]
[1754005862866,42.66,172.61,172.59,5.98526806]
[1754005863282,0.68,172.6,172.59,5.98526806]
[1754005864113,41.98,172.61,172.59,5.98526806]
[1754005864284,41.98,172.61,172.6,5.98526806]
[1754005864604,42.68,172.61,172.59,5.98526806]
[1754005864786,0.7,172.6,172.59,5.98526806]
[1754005865987,41.98,172.61,172.59,5.98526806]
[1754005866183,41.98,172.61,172.6,5.98526806]
[1754005867698,42.68,172.61,172.6,5.98526806]
[1754005867908,42.68,172.61,172.54,0.69]
[1754005868078,42.68,172.61,172.6,5.98526806]
[1754005868488,41.98,172.61,172.6,5.98526806]
[1754005868688,42.68,172.61,172.6,5.98526806]
[1754005868887,42.64,172.61,172.6,5.98526806]
[1754005870498,41.94,172.61,172.6,5.98526806]
[1754005870700,152.83799581,172.63,172.6,5.98526806]
[1754005871009,41.94,172.61,172.57,0.69]
[1754005871408,152.83799581,172.63,172.53,11.78128512]
[1754005871707,41.92,172.62,172.58,0.69]
[1754005871908,41.92,172.62,172.59,0.69]
[1754005872078,41.92,172.62,172.61,5.98526806]
[1754005872809,42.62,172.62,172.61,5.98526806]
[1754005873602,42.62,172.62,172.6,5.98526806]
[1754005873801,0.7,172.61,172.59,5.98526806]
[1754005873995,0.7,172.6,172.59,5.98526806]
[1754005874313,42.62,172.6,172.59,5.98526806]
[1754005874480,41.92,172.6,172.59,5.98526806]
[1754005874905,0.7,172.6,172.59,5.98526806]
[1754005875113,42.62,172.6,172.57,5.98526806]
[1754005875285,0.7,172.59,172.57,5.98526806]
[1754005875476,42.62,172.58,172.57,5.98526806]
[1754005875683,41.92,172.58,172.57,5.98526806]
[1754005878806,41.92,172.58,172.57,6.67526806]
[1754005879197,41.9,172.6,172.57,6.67526806]
[1754005879382,41.9,172.6,172.59,5.98526806]
[1754005879585,147.6,172.63,172.59,6.67526806]
[1754005879901,41.9,172.62,172.61,5.98526806]
[1754005880104,147.6,172.63,172.61,5.98526806]
[1754005880280,189.5,172.63,172.62,5.98526806]
[1754005882220,190.2,172.63,172.61,5.98526806]
[1754005882595,189.5,172.63,172.61,5.98526806]
[1754005883250,189.5,172.63,172.62,5.98526806]
[1754005884592,190.2,172.63,172.61,5.98526806]
[1754005884797,0.7,172.62,172.6,5.98526806]
[1754005885119,0.7,172.61,172.6,5.98526806]
[1754005885313,147.6,172.6,172.56,5.98526806]
[1754005885616,42.58,172.59,172.56,5.98526806]
[1754005885828,0.7,172.58,172.54,5.98526806]
[1754005886037,41.88,172.57,172.54,5.98526806]
[1754005886406,0.7,172.56,172.54,5.98526806]
[1754005887135,0.7,172.55,172.51,0.69]
[1754005887302,42.58,172.55,172.53,5.98526806]
[1754005887638,41.88,172.55,172.5,0.69]
[1754005887796,5.98526806,172.53,172.48,5.98526806]
[1754005887996,0.7,172.54,172.46,5.98526806]
[1754005887997,5.98526806,172.51,172.46,5.98526806]
[1754005888226,48.56526806,172.5,172.45,5.98526806]
[1754005888392,0.7,172.49,172.45,5.98526806]
[1754005888594,41.86,172.48,172.46,5.98526806]
[1754005888823,41.88,172.48,172.46,5.98526806]
[1754005890312,26.0,172.5,172.47,6.67526806]
[1754005890543,41.86,172.52,172.49,5.98526806]
[1754005890835,41.86,172.52,172.51,5.98526806]
[1754005891209,41.86,172.54,172.51,5.98526806]
[1754005891628,41.86,172.54,172.51,6.67526806]
[1754005891833,41.86,172.54,172.52,5.98526806]
[1754005892633,41.86,172.54,172.49,0.69]
[1754005892814,41.86,172.54,172.52,5.98526806]
[1754005893424,0.7,172.53,172.46,0.69]
[1754005893606,0.7,172.53,172.4,0.5800464]
[1754005893607,47.86526806,172.52,172.43,16.78468397]
[1754005893812,6.68526806,172.51,172.46,5.98526806]
[1754005894013,0.7,172.5,172.47,5.98526806]
[1754005894312,41.86,172.49,172.47,0.69]
[1754005894919,0.68,172.48,172.44,0.7]
[1754005895231,0.68,172.47,172.42,16.78468397]
[1754005895457,0.68,172.47,172.38,41.86]
[1754005895458,0.68,172.47,172.44,5.98526806]
[1754005895612,0.68,172.47,172.43,5.98526806]
[1754005895812,42.54,172.46,172.44,5.98526806]
[1754005896114,41.86,172.46,172.44,5.98526806]
[1754005896322,41.86,172.46,172.45,5.98526806]
[1754005896525,41.86,172.46,172.44,5.98526806]
[1754005896739,41.86,172.46,172.44,8.89133068]
[1754005897136,42.54,172.46,172.44,8.89133068]
[1754005898545,41.86,172.46,172.44,8.89133068]
[1754005900556,41.86,172.46,172.45,9.59133068]
[1754005901255,41.86,172.46,172.44,8.89133068]
[1754005901256,42.54,172.46,172.44,8.89133068]